[Event "*** Titled Tuesday Blitz"]
[Site "Chess.com"]
[Date "2020.12.01"]
[Round "4"]
[White "anon219"]
[Black "ARMQUEEN"]
[Result "1-0"]
[WhiteElo "2766"]
[BlackElo "2503"]
[TimeControl "180+1"]
[EndTime "10:40:59 PST"]
[Termination "anon219 won by checkmate"]

1. e4 {[%clk 0:03:00.7]} 1... c5 {[%clk 0:02:59.6]} 2. Nf3 {[%clk 0:03:00.4]}
2... Nc6 {[%clk 0:02:58.9]} 3. Bb5 {[%clk 0:03:00.4]} 3... g6 {[%clk 0:02:58.6]}
4. O-O {[%clk 0:03:00.5]} 4... Bg7 {[%clk 0:02:58.6]} 5. Nc3 {[%clk 0:03:01.1]}
5... d6 {[%clk 0:02:56.9]} 6. e5 {[%clk 0:03:00.7]} 6... dxe5 {[%clk 0:02:54.7]}
7. Bxc6+ {[%clk 0:02:59.3]} 7... bxc6 {[%clk 0:02:54.5]} 8. Re1 {[%clk
0:02:59.9]} 8... f6 {[%clk 0:02:53.4]} 9. d3 {[%clk 0:03:00.1]} 9... Nh6 {[%clk
0:02:52.9]} 10. Be3 {[%clk 0:03:00.4]} 10... O-O {[%clk 0:02:42.8]} 11. Bxc5
{[%clk 0:02:59.1]} 11... Nf5 {[%clk 0:02:41.6]} 12. a4 {[%clk 0:02:52.6]} 12...
a6 {[%clk 0:02:39.9]} 13. a5 {[%clk 0:02:51.9]} 13... Rb8 {[%clk 0:02:40.1]} 14.
b4 {[%clk 0:02:46.2]} 14... Be6 {[%clk 0:02:32.6]} 15. Ne4 {[%clk 0:02:29]}
15... h5 {[%clk 0:02:29.2]} 16. Bb6 {[%clk 0:02:23.3]} 16... Qc8 {[%clk
0:02:27.5]} 17. Nc5 {[%clk 0:02:17.7]} 17... Bf7 {[%clk 0:02:23.9]} 18. c3
{[%clk 0:02:07]} 18... Kh7 {[%clk 0:02:17.6]} 19. h3 {[%clk 0:01:59.8]} 19...
Rg8 {[%clk 0:02:16.3]} 20. d4 {[%clk 0:01:59.4]} 20... exd4 {[%clk 0:02:13.4]}
21. Nxd4 {[%clk 0:01:54.6]} 21... e5 {[%clk 0:01:57.2]} 22. Nxf5 {[%clk
0:01:54.2]} 22... gxf5 {[%clk 0:01:47.3]} 23. Qd7 {[%clk 0:01:53.9]} 23... Qxd7
{[%clk 0:01:32.8]} 24. Nxd7 {[%clk 0:01:54.8]} 24... Ra8 {[%clk 0:01:32.7]} 25.
Rad1 {[%clk 0:01:52.9]} 25... Bd5 {[%clk 0:01:32.3]} 26. f3 {[%clk 0:01:52.7]}
26... Kg6 {[%clk 0:01:22.9]} 27. h4 {[%clk 0:01:47.4]} 27... Kf7 {[%clk
0:01:22.7]} 28. Kf2 {[%clk 0:01:42.1]} 28... Bh6 {[%clk 0:01:22.9]} 29. Be3
{[%clk 0:01:34.1]} 29... Bf8 {[%clk 0:01:05.9]} 30. Nb6 {[%clk 0:01:32.5]} 30...
Rd8 {[%clk 0:01:02.5]} 31. g3 {[%clk 0:01:08.4]} 31... Be7 {[%clk 0:00:59.8]}
32. f4 {[%clk 0:01:03.4]} 32... Bb3 {[%clk 0:00:51.8]} 33. Rxd8 {[%clk
0:00:56.6]} 33... Rxd8 {[%clk 0:00:50.4]} 34. Ke2 {[%clk 0:00:52.4]} 34... Ke6
{[%clk 0:00:47.4]} 35. Rb1 {[%clk 0:00:49]} 35... Bc2 {[%clk 0:00:47.3]} 36. Rb2
{[%clk 0:00:45.9]} 36... Bd3+ {[%clk 0:00:47.3]} 37. Kf2 {[%clk 0:00:45.9]}
37... Bf8 {[%clk 0:00:36.6]} 38. Rd2 {[%clk 0:00:43.7]} 38... e4 {[%clk
0:00:36]} 39. Na4 {[%clk 0:00:39.9]} 39... Be7 {[%clk 0:00:33.9]} 40. Bc5 {[%clk
0:00:39.5]} 40... Bb5 {[%clk 0:00:29.2]} 41. Rxd8 {[%clk 0:00:38.8]} 41... Bxd8
{[%clk 0:00:29.2]} 42. Nb2 {[%clk 0:00:39.4]} 42... Kd5 {[%clk 0:00:26.5]} 43.
Ke3 {[%clk 0:00:36.8]} 43... Bxa5 {[%clk 0:00:25.4]} 44. Kd2 {[%clk 0:00:12.3]}
44... Bc7 {[%clk 0:00:23.9]} 45. Nd1 {[%clk 0:00:12.4]} 45... Bd3 {[%clk
0:00:20.2]} 46. Nf2 {[%clk 0:00:11.6]} 46... Bc4 {[%clk 0:00:19.3]} 47. Nd1
{[%clk 0:00:11.8]} 47... Ke6 {[%clk 0:00:18.8]} 48. Ne3 {[%clk 0:00:11.8]} 48...
Bb3 {[%clk 0:00:18.7]} 49. c4 {[%clk 0:00:11.7]} 49... a5 {[%clk 0:00:16.9]} 50.
Kc3 {[%clk 0:00:08.9]} 50... Ba4 {[%clk 0:00:16.9]} 51. Bd4 {[%clk 0:00:05.8]}
51... Bd8 {[%clk 0:00:10.1]} 52. Bc5 {[%clk 0:00:05.6]} 52... Bc7 {[%clk
0:00:10.4]} 53. Kb2 {[%clk 0:00:05.5]} 53... axb4 {[%clk 0:00:10.1]} 54. Bxb4
{[%clk 0:00:05.6]} 54... Bb6 {[%clk 0:00:10.3]} 55. c5 {[%clk 0:00:06.1]} 55...
Ba7 {[%clk 0:00:10.1]} 56. Kc3 {[%clk 0:00:07]} 56... Bb5 {[%clk 0:00:11]} 57.
Nc2 {[%clk 0:00:07.4]} 57... Kd5 {[%clk 0:00:10.9]} 58. Ne3+ {[%clk 0:00:06.3]}
58... Ke6 {[%clk 0:00:10.6]} 59. Kd4 {[%clk 0:00:06.8]} 59... Bb8 {[%clk
0:00:10.7]} 60. Ba5 {[%clk 0:00:07.1]} 60... Ba7 {[%clk 0:00:10]} 61. Bc7 {[%clk
0:00:06.9]} 61... Kd7 {[%clk 0:00:10.4]} 62. Bd6 {[%clk 0:00:07.3]} 62... Ke6
{[%clk 0:00:09.2]} 63. Nc2 {[%clk 0:00:07.6]} 63... Kd7 {[%clk 0:00:09.2]} 64.
Ke3 {[%clk 0:00:07.2]} 64... Ke6 {[%clk 0:00:09.2]} 65. Nd4+ {[%clk 0:00:07.5]}
65... Kd5 {[%clk 0:00:09.7]} 66. Nxf5 {[%clk 0:00:07.7]} 66... Bxc5+ {[%clk
0:00:10.2]} 67. Bxc5 {[%clk 0:00:08.2]} 67... Kxc5 {[%clk 0:00:11.1]} 68. Kxe4
{[%clk 0:00:07.1]} 68... Ba4 {[%clk 0:00:11.6]} 69. Ng7 {[%clk 0:00:06.8]} 69...
Bc2+ {[%clk 0:00:11.3]} 70. Ke3 {[%clk 0:00:06.7]} 70... Kd5 {[%clk 0:00:11.8]}
71. Nxh5 {[%clk 0:00:06.5]} 71... c5 {[%clk 0:00:12.7]} 72. Nxf6+ {[%clk
0:00:06.7]} 72... Ke6 {[%clk 0:00:12.4]} 73. Ne4 {[%clk 0:00:06.7]} 73... c4
{[%clk 0:00:12.8]} 74. Nc3 {[%clk 0:00:07.1]} 74... Kf5 {[%clk 0:00:12.5]} 75.
Kf3 {[%clk 0:00:07.5]} 75... Bd3 {[%clk 0:00:12.7]} 76. g4+ {[%clk 0:00:07.8]}
76... Kf6 {[%clk 0:00:13.3]} 77. h5 {[%clk 0:00:08.1]} 77... Bc2 {[%clk
0:00:13.1]} 78. Ke3 {[%clk 0:00:05.4]} 78... Ke6 {[%clk 0:00:13.1]} 79. h6
{[%clk 0:00:05.5]} 79... Kf6 {[%clk 0:00:13.1]} 80. f5 {[%clk 0:00:05.9]} 80...
Kf7 {[%clk 0:00:12.2]} 81. Kf4 {[%clk 0:00:06]} 81... Kg8 {[%clk 0:00:12.5]} 82.
g5 {[%clk 0:00:06.5]} 82... Kh7 {[%clk 0:00:13]} 83. Ke5 {[%clk 0:00:07]} 83...
Kg8 {[%clk 0:00:13]} 84. Kf6 {[%clk 0:00:07.4]} 84... Bd3 {[%clk 0:00:13.3]} 85.
g6 {[%clk 0:00:07.3]} 85... Kh8 {[%clk 0:00:13.7]} 86. Kf7 {[%clk 0:00:04.9]}
86... Bxf5 {[%clk 0:00:12.4]} 87. g7+ {[%clk 0:00:05.3]} 87... Kh7 {[%clk
0:00:13.2]} 88. g8=Q+ {[%clk 0:00:05.7]} 88... Kxh6 {[%clk 0:00:14.1]} 89. Kf6
{[%clk 0:00:05.2]} 89... Bd3 {[%clk 0:00:13.3]} 90. Qg5+ {[%clk 0:00:05.2]}
90... Kh7 {[%clk 0:00:13]} 91. Qg7# {[%clk 0:00:06.1]} 1-0

[Event "*** Titled Tuesday Blitz"]
[Site "Chess.com"]
[Date "2020.12.01"]
[Round "5"]
[White "DarZay"]
[Black "Gulkov_Igor"]
[Result "0-1"]
[WhiteElo "2164"]
[BlackElo "2496"]
[TimeControl "180+1"]
[EndTime "10:48:53 PST"]
[Termination "Gulkov_Igor won by resignation"]

1. e4 {[%clk 0:03:00.9]} 1... c5 {[%clk 0:02:59.3]} 2. Nf3 {[%clk 0:03:00.2]}
2... d6 {[%clk 0:02:58.8]} 3. d4 {[%clk 0:03:00.3]} 3... cxd4 {[%clk 0:02:59.1]}
4. Nxd4 {[%clk 0:03:00.5]} 4... Nf6 {[%clk 0:02:59.6]} 5. Nc3 {[%clk 0:03:00.7]}
5... a6 {[%clk 0:03:00.1]} 6. Be2 {[%clk 0:02:50.1]} 6... e6 {[%clk 0:02:59.6]}
7. Nb3 {[%clk 0:02:48.3]} 7... b5 {[%clk 0:02:53.5]} 8. a3 {[%clk 0:02:46.7]}
8... Bb7 {[%clk 0:02:53]} 9. f3 {[%clk 0:02:45.5]} 9... Nbd7 {[%clk 0:02:52.4]}
10. Be3 {[%clk 0:02:45.4]} 10... Rc8 {[%clk 0:02:48.3]} 11. Qd2 {[%clk
0:02:45.1]} 11... Ne5 {[%clk 0:02:46.9]} 12. O-O {[%clk 0:02:41.7]} 12... Be7
{[%clk 0:02:46]} 13. h3 {[%clk 0:02:38.9]} 13... O-O {[%clk 0:02:45]} 14. f4
{[%clk 0:02:38.8]} 14... Nc4 {[%clk 0:02:44.8]} 15. Bf3 {[%clk 0:02:34.6]} 15...
Nxd2 {[%clk 0:02:44]} 0-1

[Event "*** Titled Tuesday Blitz"]
[Site "Chess.com"]
[Date "2020.12.01"]
[Round "5"]
[White "Region_07"]
[Black "parintele_chess"]
[Result "1-0"]
[WhiteElo "2461"]
[BlackElo "2198"]
[TimeControl "180+1"]
[EndTime "10:49:40 PST"]
[Termination "Region_07 won by resignation"]

1. d4 {[%clk 0:02:58]} 1... d5 {[%clk 0:02:56.7]} 2. Bg5 {[%clk 0:02:57.8]} 2...
Nf6 {[%clk 0:02:55.5]} 3. Nd2 {[%clk 0:02:57.4]} 3... h6 {[%clk 0:02:52.7]} 4.
Bh4 {[%clk 0:02:56.9]} 4... g5 {[%clk 0:02:49.2]} 5. Bg3 {[%clk 0:02:56.3]} 5...
Bg7 {[%clk 0:02:49.4]} 6. e3 {[%clk 0:02:55.5]} 6... c5 {[%clk 0:02:49.1]} 7. c3
{[%clk 0:02:55.1]} 7... Nc6 {[%clk 0:02:48.9]} 8. Ngf3 {[%clk 0:02:54.2]} 8...
b6 {[%clk 0:02:43.9]} 9. Ne5 {[%clk 0:02:40.8]} 9... Nxe5 {[%clk 0:02:38.5]} 10.
Bxe5 {[%clk 0:02:41.7]} 10... O-O {[%clk 0:02:35.9]} 11. h4 {[%clk 0:02:36.7]}
11... g4 {[%clk 0:02:35.8]} 12. h5 {[%clk 0:02:32]} 12... Nd7 {[%clk 0:02:35.1]}
13. Bxg7 {[%clk 0:02:28]} 13... Kxg7 {[%clk 0:02:36]} 14. Qxg4+ {[%clk
0:02:27.8]} 14... Kh8 {[%clk 0:02:36.4]} 15. Qf4 {[%clk 0:02:26]} 15... Kh7
{[%clk 0:02:26.3]} 16. Bd3+ {[%clk 0:02:25.4]} 16... Kg7 {[%clk 0:02:23.8]} 17.
Rh3 {[%clk 0:02:21.8]} 1-0

[Event "*** Titled Tuesday Blitz"]
[Site "Chess.com"]
[Date "2020.12.01"]
[Round "5"]
[White "GianmarcoVaR"]
[Black "Mostii"]
[Result "1-0"]
[WhiteElo "2658"]
[BlackElo "2473"]
[TimeControl "180+1"]
[EndTime "10:49:41 PST"]
[Termination "GianmarcoVaR won by resignation"]

1. d4 {[%clk 0:02:59.5]} 1... e6 {[%clk 0:02:59.2]} 2. Nf3 {[%clk 0:02:58.3]}
2... Nf6 {[%clk 0:02:58.4]} 3. c4 {[%clk 0:02:55.4]} 3... b6 {[%clk 0:02:57]} 4.
g3 {[%clk 0:02:55.2]} 4... Bb7 {[%clk 0:02:56.5]} 5. Bg2 {[%clk 0:02:55.2]} 5...
g6 {[%clk 0:02:56]} 6. O-O {[%clk 0:02:54.4]} 6... Bg7 {[%clk 0:02:55.5]} 7. Qc2
{[%clk 0:02:46.4]} 7... O-O {[%clk 0:02:49.4]} 8. Nc3 {[%clk 0:02:46.3]} 8... d6
{[%clk 0:02:49.2]} 9. e4 {[%clk 0:02:44.8]} 9... Nbd7 {[%clk 0:02:49.5]} 10. h3
{[%clk 0:02:43.6]} 10... e5 {[%clk 0:02:48.8]} 11. Be3 {[%clk 0:02:37.6]} 11...
exd4 {[%clk 0:02:47.9]} 12. Nxd4 {[%clk 0:02:37.8]} 12... Qc8 {[%clk 0:02:41.4]}
13. Rfe1 {[%clk 0:02:35.3]} 13... a5 {[%clk 0:02:39.8]} 14. Nd5 {[%clk
0:02:34.5]} 14... Nc5 {[%clk 0:02:36.8]} 15. Ne7+ {[%clk 0:02:34.1]} 1-0

[Event "*** Titled Tuesday Blitz"]
[Site "Chess.com"]
[Date "2020.12.01"]
[Round "5"]
[White "TrenerChos"]
[Black "DrMamaliga"]
[Result "0-1"]
[WhiteElo "2165"]
[BlackElo "2348"]
[TimeControl "180+1"]
[EndTime "10:49:52 PST"]
[Termination "DrMamaliga won by resignation"]

1. d4 {[%clk 0:03:00.9]} 1... Nf6 {[%clk 0:02:55.2]} 2. Nf3 {[%clk 0:03:00.3]}
2... c5 {[%clk 0:02:55]} 3. g3 {[%clk 0:03:01.2]} 3... cxd4 {[%clk 0:02:55.9]}
4. Nxd4 {[%clk 0:02:57.1]} 4... Nc6 {[%clk 0:02:56.8]} 5. Bg2 {[%clk 0:02:54.9]}
5... g6 {[%clk 0:02:55.9]} 6. O-O {[%clk 0:02:53.8]} 6... Bg7 {[%clk 0:02:55.6]}
7. c4 {[%clk 0:02:53.7]} 7... O-O {[%clk 0:02:54.7]} 8. Nc3 {[%clk 0:02:52.7]}
8... Qa5 {[%clk 0:02:55.1]} 9. e3 {[%clk 0:02:51.7]} 9... d6 {[%clk 0:02:51.2]}
10. Nxc6 {[%clk 0:02:48.3]} 10... bxc6 {[%clk 0:02:52.1]} 11. Bxc6 {[%clk
0:02:48.7]} 11... Rb8 {[%clk 0:02:52.9]} 12. Bd2 {[%clk 0:02:36.4]} 12... Rxb2
{[%clk 0:02:46.9]} 13. Na4 {[%clk 0:02:33.1]} 13... Qxd2 {[%clk 0:02:45.9]} 14.
Nxb2 {[%clk 0:02:30.8]} 14... Qxb2 {[%clk 0:02:44.6]} 15. f4 {[%clk 0:02:25.7]}
15... Bg4 {[%clk 0:02:41.8]} 16. Qd3 {[%clk 0:02:24.9]} 16... Be2 {[%clk
0:02:34.7]} 17. Rfb1 {[%clk 0:02:16.9]} 17... Bxd3 {[%clk 0:02:32.9]} 18. Rxb2
{[%clk 0:02:17.8]} 18... Ng4 {[%clk 0:02:27.5]} 0-1

[Event "*** Titled Tuesday Blitz"]
[Site "Chess.com"]
[Date "2020.12.01"]
[Round "5"]
[White "fmshawnrl123"]
[Black "karinachess1"]
[Result "1-0"]
[WhiteElo "2789"]
[BlackElo "2484"]
[TimeControl "180+1"]
[EndTime "10:49:59 PST"]
[Termination "fmshawnrl123 won by resignation"]

1. c4 {[%clk 0:03:00.9]} 1... Nf6 {[%clk 0:02:57.5]} 2. g3 {[%clk 0:02:56.5]}
2... g6 {[%clk 0:02:56.5]} 3. Bg2 {[%clk 0:02:56.1]} 3... Bg7 {[%clk 0:02:56.7]}
4. Nc3 {[%clk 0:02:56.7]} 4... O-O {[%clk 0:02:56.7]} 5. e4 {[%clk 0:02:57.3]}
5... d6 {[%clk 0:02:56.2]} 6. Nge2 {[%clk 0:02:58]} 6... e5 {[%clk 0:02:51.9]}
7. O-O {[%clk 0:02:58]} 7... Nbd7 {[%clk 0:02:48.6]} 8. d3 {[%clk 0:02:57.5]}
8... Nc5 {[%clk 0:02:37.9]} 9. h3 {[%clk 0:02:53.6]} 9... Be6 {[%clk 0:02:27.6]}
10. b4 {[%clk 0:02:50.8]} 10... Na6 {[%clk 0:02:24.1]} 11. Rb1 {[%clk
0:02:50.7]} 11... Qc8 {[%clk 0:02:14.2]} 12. Kh2 {[%clk 0:02:49.7]} 12... Nh5
{[%clk 0:02:09.2]} 13. Nd5 {[%clk 0:02:47.3]} 13... c6 {[%clk 0:02:06.1]} 14.
Ne7+ {[%clk 0:02:47.1]} 14... Kh8 {[%clk 0:01:46.9]} 15. Nxc8 {[%clk 0:02:48]}
15... Raxc8 {[%clk 0:01:46.8]} 16. Be3 {[%clk 0:02:38]} 1-0

[Event "*** Titled Tuesday Blitz"]
[Site "Chess.com"]
[Date "2020.12.01"]
[Round "5"]
[White "maxip32"]
[Black "ajkom197"]
[Result "1-0"]
[WhiteElo "2505"]
[BlackElo "2332"]
[TimeControl "180+1"]
[EndTime "10:50:03 PST"]
[Termination "maxip32 won by checkmate"]

1. e4 {[%clk 0:03:00.9]} 1... c6 {[%clk 0:02:59.9]} 2. d4 {[%clk 0:03:00.6]}
2... d5 {[%clk 0:02:55.5]} 3. e5 {[%clk 0:02:56.6]} 3... Bf5 {[%clk 0:02:54.8]}
4. h4 {[%clk 0:02:50.1]} 4... h5 {[%clk 0:02:53.8]} 5. c4 {[%clk 0:02:49.9]}
5... e6 {[%clk 0:02:53.1]} 6. Nc3 {[%clk 0:02:50.8]} 6... Nd7 {[%clk 0:02:52.7]}
7. cxd5 {[%clk 0:02:50.8]} 7... cxd5 {[%clk 0:02:51.5]} 8. Bd3 {[%clk
0:02:51.7]} 8... Bxd3 {[%clk 0:02:51.1]} 9. Qxd3 {[%clk 0:02:52.4]} 9... a6
{[%clk 0:02:51.7]} 10. Nf3 {[%clk 0:02:52.2]} 10... Ne7 {[%clk 0:02:50.1]} 11.
Bg5 {[%clk 0:02:38.6]} 11... Qa5 {[%clk 0:02:47.4]} 12. O-O {[%clk 0:02:38]}
12... Nf5 {[%clk 0:02:46.4]} 13. a3 {[%clk 0:02:38]} 13... Rc8 {[%clk
0:02:43.6]} 14. b4 {[%clk 0:02:37]} 14... Qc7 {[%clk 0:02:40.7]} 15. Nxd5 {[%clk
0:02:36.5]} 15... Qc2 {[%clk 0:02:33.3]} 16. Rac1 {[%clk 0:02:08.3]} 16... Qxd3
{[%clk 0:02:04.9]} 17. Rxc8# {[%clk 0:02:03.8]} 1-0

[Event "*** Titled Tuesday Blitz"]
[Site "Chess.com"]
[Date "2020.12.01"]
[Round "5"]
[White "guillembaches"]
[Black "glebus008"]
[Result "1/2-1/2"]
[WhiteElo "2395"]
[BlackElo "2241"]
[TimeControl "180+1"]
[EndTime "10:50:12 PST"]
[Termination "Game drawn by agreement"]

1. e4 {[%clk 0:03:00.9]} 1... c5 {[%clk 0:02:58.6]} 2. Nf3 {[%clk 0:03:00.9]}
2... e6 {[%clk 0:02:58.4]} 3. c4 {[%clk 0:02:59.5]} 3... d6 {[%clk 0:02:55.8]}
4. Nc3 {[%clk 0:02:59.3]} 4... Nf6 {[%clk 0:02:55.8]} 5. Be2 {[%clk 0:02:59.2]}
5... Be7 {[%clk 0:02:55.6]} 6. O-O {[%clk 0:02:59]} 6... O-O {[%clk 0:02:55.1]}
7. d4 {[%clk 0:02:59]} 7... cxd4 {[%clk 0:02:54.5]} 8. Nxd4 {[%clk 0:02:59.9]}
8... a6 {[%clk 0:02:53.9]} 9. Be3 {[%clk 0:02:59.4]} 9... Qc7 {[%clk 0:02:53.8]}
10. a3 {[%clk 0:02:55.9]} 10... Nbd7 {[%clk 0:02:53.8]} 11. Rc1 {[%clk
0:02:50.4]} 11... b6 {[%clk 0:02:53.4]} 12. b4 {[%clk 0:02:48.4]} 12... Bb7
{[%clk 0:02:53.4]} 13. f3 {[%clk 0:02:48.7]} 13... Rfd8 {[%clk 0:02:49.2]} 14.
Qd2 {[%clk 0:02:48]} 14... Nc5 {[%clk 0:02:41.3]} 15. bxc5 {[%clk 0:02:46.9]}
15... dxc5 {[%clk 0:02:41.1]} 16. Nxe6 {[%clk 0:02:23.8]} 16... fxe6 {[%clk
0:02:36]} 17. Qb2 {[%clk 0:02:21.1]} 17... Nd7 {[%clk 0:02:23.1]} 18. Rfd1
{[%clk 0:02:11.2]} 18... Bd6 {[%clk 0:02:18.9]} 19. h3 {[%clk 0:01:59.3]}
1/2-1/2

[Event "*** Titled Tuesday Blitz"]
[Site "Chess.com"]
[Date "2020.12.01"]
[Round "5"]
[White "Khnykin_Nikolay"]
[Black "DonPreuss"]
[Result "0-1"]
[WhiteElo "2028"]
[BlackElo "2224"]
[TimeControl "180+1"]
[EndTime "10:50:48 PST"]
[Termination "DonPreuss won by checkmate"]

1. e4 {[%clk 0:02:55.6]} 1... e5 {[%clk 0:02:59.5]} 2. Nf3 {[%clk 0:02:53.9]}
2... d5 {[%clk 0:02:58.7]} 3. d3 {[%clk 0:02:38.7]} 3... dxe4 {[%clk 0:02:58.5]}
4. dxe4 {[%clk 0:02:38.3]} 4... Qxd1+ {[%clk 0:02:59.4]} 5. Kxd1 {[%clk
0:02:38.7]} 5... Nc6 {[%clk 0:02:59.8]} 6. Nc3 {[%clk 0:02:38]} 6... Bg4 {[%clk
0:03:00.1]} 7. Nd5 {[%clk 0:02:36.9]} 7... O-O-O {[%clk 0:02:58.9]} 8. Be3
{[%clk 0:02:35]} 8... Nce7 {[%clk 0:02:54]} 9. Ke2 {[%clk 0:02:24.8]} 9... Nxd5
{[%clk 0:02:52.8]} 10. exd5 {[%clk 0:02:22.8]} 10... e4 {[%clk 0:02:52.7]} 11.
h3 {[%clk 0:02:17.5]} 11... exf3+ {[%clk 0:02:52.6]} 12. gxf3 {[%clk 0:02:15.4]}
12... Bf5 {[%clk 0:02:50.1]} 13. Ke1 {[%clk 0:02:00.8]} 13... Nf6 {[%clk
0:02:49.4]} 14. Bxa7 {[%clk 0:01:57.4]} 14... Nxd5 {[%clk 0:02:38.6]} 15. c3
{[%clk 0:01:50.9]} 15... Bd6 {[%clk 0:02:09.3]} 16. Bd4 {[%clk 0:01:47.6]} 16...
c5 {[%clk 0:01:56.7]} 17. Bxg7 {[%clk 0:01:43.9]} 17... Rhe8+ {[%clk 0:01:56]}
18. Kd2 {[%clk 0:01:42.3]} 18... Bf4+ {[%clk 0:01:54.1]} 19. Kd1 {[%clk
0:01:36]} 19... Nxc3# {[%clk 0:01:53.9]} 0-1

[Event "*** Titled Tuesday Blitz"]
[Site "Chess.com"]
[Date "2020.12.01"]
[Round "5"]
[White "Titus369"]
[Black "Rainmond"]
[Result "0-1"]
[WhiteElo "2581"]
[BlackElo "2798"]
[TimeControl "180+1"]
[EndTime "10:51:02 PST"]
[Termination "Rainmond won by resignation"]

1. e4 {[%clk 0:03:00.9]} 1... Nc6 {[%clk 0:02:51.5]} 2. d4 {[%clk 0:02:55.2]}
2... d6 {[%clk 0:02:50.4]} 3. Nf3 {[%clk 0:02:54.4]} 3... Nf6 {[%clk 0:02:43]}
4. h3 {[%clk 0:02:53.3]} 4... Nxe4 {[%clk 0:02:38.8]} 5. d5 {[%clk 0:02:48]}
5... Nb8 {[%clk 0:02:37.4]} 6. c4 {[%clk 0:02:45.2]} 6... g6 {[%clk 0:02:33.8]}
7. Bd3 {[%clk 0:02:43.8]} 7... Nc5 {[%clk 0:02:25]} 8. Bc2 {[%clk 0:02:41.5]}
8... Bg7 {[%clk 0:02:23.3]} 9. O-O {[%clk 0:02:40.2]} 9... a5 {[%clk 0:02:21.6]}
10. Nc3 {[%clk 0:02:40.3]} 10... O-O {[%clk 0:02:16.4]} 11. Be3 {[%clk
0:02:38.5]} 11... e5 {[%clk 0:02:15]} 12. Qd2 {[%clk 0:02:31.6]} 12... Nbd7
{[%clk 0:02:12]} 13. Bh6 {[%clk 0:02:31.1]} 13... Nb6 {[%clk 0:02:09.5]} 14. b3
{[%clk 0:02:28.8]} 14... f5 {[%clk 0:02:08.3]} 15. Bxg7 {[%clk 0:02:26]} 15...
Kxg7 {[%clk 0:02:07.2]} 16. Qe3 {[%clk 0:02:11.2]} 16... Re8 {[%clk 0:02:05.6]}
17. Rae1 {[%clk 0:02:06.1]} 17... Bd7 {[%clk 0:01:57.9]} 18. Nd2 {[%clk
0:02:00.5]} 18... Qf6 {[%clk 0:01:54.4]} 19. f4 {[%clk 0:01:58.7]} 19... exf4
{[%clk 0:01:50.8]} 20. Qf3 {[%clk 0:01:56]} 20... Qd4+ {[%clk 0:01:48.8]} 0-1

[Event "*** Titled Tuesday Blitz"]
[Site "Chess.com"]
[Date "2020.12.01"]
[Round "5"]
[White "underdogchss"]
[Black "Chamal_Gedgafov"]
[Result "1-0"]
[WhiteElo "2357"]
[BlackElo "2168"]
[TimeControl "180+1"]
[EndTime "10:51:24 PST"]
[Termination "underdogchss won by resignation"]

1. d4 {[%clk 0:03:00.9]} 1... Nf6 {[%clk 0:02:57.1]} 2. Nf3 {[%clk 0:03:00.4]}
2... g6 {[%clk 0:02:56.8]} 3. c4 {[%clk 0:02:59.5]} 3... Bg7 {[%clk 0:02:57.7]}
4. Nc3 {[%clk 0:02:59.8]} 4... O-O {[%clk 0:02:57.5]} 5. e4 {[%clk 0:02:59.5]}
5... d6 {[%clk 0:02:57.8]} 6. h3 {[%clk 0:02:58.2]} 6... Nbd7 {[%clk 0:02:58.3]}
7. Bd3 {[%clk 0:02:56]} 7... e5 {[%clk 0:02:58.7]} 8. d5 {[%clk 0:02:56.3]} 8...
Nc5 {[%clk 0:02:58.6]} 9. Bc2 {[%clk 0:02:56.4]} 9... a5 {[%clk 0:02:58.5]} 10.
g4 {[%clk 0:02:41.6]} 10... b6 {[%clk 0:02:38.7]} 11. Bg5 {[%clk 0:02:39]} 11...
h6 {[%clk 0:02:36.9]} 12. Be3 {[%clk 0:02:33.5]} 12... Nxg4 {[%clk 0:02:25.4]}
13. hxg4 {[%clk 0:02:30.9]} 13... Bxg4 {[%clk 0:02:26.3]} 14. Bxc5 {[%clk
0:02:21.6]} 14... bxc5 {[%clk 0:02:24.8]} 15. Qd3 {[%clk 0:02:22.1]} 15... f5
{[%clk 0:02:14.6]} 16. Nh2 {[%clk 0:02:11.9]} 16... fxe4 {[%clk 0:02:08.7]} 17.
Nxe4 {[%clk 0:02:08.4]} 17... Bf5 {[%clk 0:02:01.9]} 18. O-O-O {[%clk 0:02:03]}
18... a4 {[%clk 0:02:00.5]} 19. a3 {[%clk 0:01:56.3]} 19... Qd7 {[%clk
0:01:57.9]} 20. Rhg1 {[%clk 0:01:48.9]} 20... Rfb8 {[%clk 0:01:54.9]} 21. f3
{[%clk 0:01:41.9]} 21... Rb7 {[%clk 0:01:48.7]} 22. Ng4 {[%clk 0:01:41.7]} 22...
Rab8 {[%clk 0:01:46.8]} 23. Ngf6+ {[%clk 0:01:40.4]} 1-0

[Event "*** Titled Tuesday Blitz"]
[Site "Chess.com"]
[Date "2020.12.01"]
[Round "5"]
[White "ErikRonka"]
[Black "maximnovik"]
[Result "0-1"]
[WhiteElo "2376"]
[BlackElo "2554"]
[TimeControl "180+1"]
[EndTime "10:51:48 PST"]
[Termination "maximnovik won by resignation"]

1. d4 {[%clk 0:03:00.9]} 1... Nf6 {[%clk 0:02:59.1]} 2. c4 {[%clk 0:02:58]} 2...
g6 {[%clk 0:02:59.5]} 3. Nc3 {[%clk 0:02:58.4]} 3... d5 {[%clk 0:03:00]} 4. Bf4
{[%clk 0:02:59]} 4... Bg7 {[%clk 0:02:59.9]} 5. e3 {[%clk 0:02:59.2]} 5... c5
{[%clk 0:02:59.8]} 6. dxc5 {[%clk 0:02:58.2]} 6... Qa5 {[%clk 0:03:00.3]} 7. Rc1
{[%clk 0:02:54.3]} 7... Ne4 {[%clk 0:02:56.5]} 8. Ne2 {[%clk 0:02:42.9]} 8...
dxc4 {[%clk 0:02:51.4]} 9. f3 {[%clk 0:02:29]} 9... Nxc5 {[%clk 0:02:44.1]} 10.
Ng1 {[%clk 0:01:32.5]} 10... O-O {[%clk 0:02:42.6]} 11. Bxc4 {[%clk 0:01:32.1]}
11... Rd8 {[%clk 0:02:38.1]} 12. Qe2 {[%clk 0:01:32.2]} 12... Be6 {[%clk
0:02:37.3]} 13. Rc2 {[%clk 0:01:18.9]} 13... Bxc4 {[%clk 0:02:29.2]} 14. Qxc4
{[%clk 0:01:18.4]} 14... Nd3+ {[%clk 0:02:18]} 15. Kf1 {[%clk 0:01:12.9]} 15...
Nc6 {[%clk 0:02:16.7]} 16. Nge2 {[%clk 0:01:00.5]} 16... Rac8 {[%clk 0:02:14.4]}
17. Qe4 {[%clk 0:00:47.7]} 17... Nc5 {[%clk 0:01:59.5]} 18. Qc4 {[%clk
0:00:44.3]} 18... Nb4 {[%clk 0:01:56.9]} 0-1